[Event "45th FIDE Olympiad 2024"]
[Site "Budapest"]
[Date "2024.09.18"]
[Round "7.73"]
[White "Brkic, Ante"]
[Black "Sadorra, Julio Catalino"]
[Result "1/2-1/2"]
[ECO "C70"]
[WhiteElo "2642"]
[BlackElo "2542"]
[Annotator "TA"]
[PlyCount "62"]
[EventDate "2024.09.05"]
[EventType "team-tourn"]
[EventCountry "HUN"]
[SourceTitle "playchess.com"]
[Source "ChessBase"]
[SourceQuality "1"]
[WhiteTeam "Croatia"]
[BlackTeam "Philippines"]
[WhiteTeamCountry "CRO"]
[BlackTeamCountry "PHI"]
[TimeControl "40/5400+30:1800+30"]

{[%evp 9,62,35,49,59,41,35,29,44,29,-85,42,45,45,31,33,36,37,36,48,8,9,6,0,-10,-16,-17,-18,-8,-9,-17,-19,-14,-14,-24,0,0,0,0,0,0,0,0,0,0,0,-16,-12,-15,-16,-25,-4,-4,-4,-5,-5]} 1. e4 e5 2. Nf3 Nc6 3. Bb5 a6 4. Ba4 Nge7 5. c3 f6 6. d4 {[%cal Bd2d4,Bd4e5,Be5f6][%mdl 32]} d5 7. dxe5 (7. exd5 {simplifies} Qxd5 8. dxe5 Qxd1+ 9. Bxd1 Nxe5 10. Nxe5 fxe5 11. Bf3) 7... dxe4 8. Nd4 {[#] exf6 is the strong threat. White has an edge.} b5 $1 {And now ...Nxd4 would win.} 9. Bb3 (9. exf6 $11 {keeps the balance.} Nxd4 10. fxe7 (10. cxd4 bxa4 11. fxe7 Bxe7 $14) 10... Bxe7 11. Qxd4 Qxd4 12. cxd4 bxa4 13. O-O) 9... Nxd4 ({Better is} 9... Nxe5 $17 {Threatens to win with ...c5.} 10. O-O c5) 10. exf6 (10. cxd4 {simplifies} Nf5 11. Nc3 Bb7 12. d5) 10... Nf3+ 11. gxf3 {[%csl Gb3][%cal Rf6f7]} Qxd1+ 12. Bxd1 gxf6 13. Nd2 Bb7 14. fxe4 O-O-O 15. Bc2 Ng6 16. Nb3 Re8 17. Be3 Bxe4 18. Bxe4 Rxe4 19. O-O-O Bd6 20. Rd4 Rhe8 21. Rg1 f5 {[%cal Bf6f5,Bf5f4][%mdl 32]} 22. Rxe4 Rxe4 23. Rg5 f4 24. Nd2 Re5 25. Rxe5 Bxe5 $11 {[%mdl 4096] Endgame. KBN-KBN} 26. Bc5 Kd7 27. Nf3 Ke6 28. Kd2 Kd5 29. Bd4 c5 30. Bxe5 Nxe5 31. Nxe5 Kxe5 {Weighted Error Value: White=0.12 (very precise) /Black=0.12 (very precise) .  Mistake:       	White=1     	Black=1      Inaccurate:     	White=1     	---        OK:         	White=8     	Black=15     Best:        	White=2     	Black=1      Strong:       	---       	Black=1} 1/2-1/2

[Event "45th FIDE Olympiad 2024"]
[Site "Budapest"]
[Date "2024.09.18"]
[Round "7.73"]
[White "Stratonowitsch, Andre"]
[Black "Koumba, Mounguen Jose Evrard"]
[Result "1-0"]
[WhiteElo "2154"]
[BlackElo "1957"]
[PlyCount "87"]
[EventDate "2024.09.05"]
[EventType "team-tourn"]
[EventCountry "HUN"]
[WhiteTeam "Seychelles"]
[BlackTeam "Gabon"]
[WhiteTeamCountry "SEY"]
[TimeControl "40/5400+30:1800+30"]

1. e4 c5 2. Nf3 e6 3. c3 d5 4. exd5 exd5 5. Bb5+ Bd7 6. Qe2+ Be7 7. O-O Bxb5 8. Qxb5+ Qd7 9. Qe2 Nc6 10. Re1 O-O-O 11. d4 Nf6 12. Bf4 Nh5 13. Be3 Rhe8 14. Qc2 g5 15. dxc5 Nf4 16. Nd4 Bxc5 17. Nd2 Bxd4 18. cxd4 Qg4 19. Bxf4 gxf4 20. h3 Qg7 21. Qf5+ Re6 22. Rxe6 fxe6 23. Qxe6+ Kb8 24. Nb3 Nxd4 25. Nxd4 Qxd4 26. Qe2 f3 27. Qxf3 Qxb2 28. Qd1 Rf8 29. Qe1 a6 30. Rb1 Qxa2 31. Rxb7+ Kxb7 32. Qb4+ Kc6 33. Qxf8 Qa1+ 34. Kh2 Qe5+ 35. f4 Qd6 36. Qc8+ Kb6 37. Kg3 d4 38. Qc1 d3 39. Kf3 Qd4 40. Qe3 Kc5 41. f5 d2 42. Qxd4+ Kxd4 43. Ke2 Ke5 44. g4 1-0

[Event "45th FIDE Olympiad 2024"]
[Site "Budapest"]
[Date "2024.09.18"]
[Round "7.74"]
[White "Quizon, Daniel"]
[Black "Martinovic, Sasa"]
[Result "0-1"]
[ECO "C07"]
[WhiteElo "2490"]
[BlackElo "2563"]
[Annotator "TA"]
[PlyCount "92"]
[EventDate "2024.09.05"]
[EventType "team-tourn"]
[EventCountry "HUN"]
[SourceTitle "playchess.com"]
[Source "ChessBase"]
[SourceQuality "1"]
[WhiteTeam "Philippines"]
[BlackTeam "Croatia"]
[WhiteTeamCountry "PHI"]
[BlackTeamCountry "CRO"]
[TimeControl "40/5400+30:1800+30"]

{[%evp 28,92,0,0,0,0,6,0,0,0,0,0,10,0,-8,-2,-15,-24,-21,-23,0,-13,-16,-19,0,0,0,-22,0,0,0,0,0,0,0,0,0,0,0,-50,-52,-100,-65,-188,-194,-275,-267,-395,-390,-349,-381,-411,-411,-408,-406,-631,-624,-1323,-810,-995,-964,-1316,-941,-1206,-1876,-1696,-1552]} 1. e4 e6 2. d4 d5 3. Nd2 c5 4. exd5 Qxd5 5. Ngf3 cxd4 6. Bc4 Qd6 7. O-O Nf6 8. Nb3 Nc6 9. Nbxd4 Nxd4 10. Qxd4 Qxd4 11. Nxd4 Bd7 12. Bf4 Rc8 13. Bb3 Bc5 14. Rad1 O-O 15. c3 Rfd8 16. Rfe1 h6 17. h3 Kf8 {The position is equal.} 18. Be5 b5 19. Rd3 a5 20. a3 Be7 21. Red1 Ne4 22. Ba2 Nc5 23. R3d2 a4 24. Nc2 Be8 25. Bd4 Nb3 26. Bxb3 axb3 27. Ne3 f6 28. Bc5 Rxd2 29. Bxe7+ Kxe7 30. Rxd2 $11 {[%mdl 4096] Endgame. KRB-KRN} g5 31. Rd4 f5 32. g3 e5 33. Rb4 (33. Nxf5+ $2 {too greedy.} Kf6 34. Rd6+ Kxf5 $19) (33. Rd1 $11 Bd7 34. f4) 33... Ke6 $15 34. Rxb3 (34. Kf1 $15) 34... f4 $17 35. gxf4 {Now White is beyond hope.} ({Better is} 35. Nc2 $1 $15) 35... gxf4 $19 36. Ng4 (36. Nc2 $142) 36... Bc6 37. Kf1 (37. f3 $142 h5 (37... Bxf3 38. Rxb5 Bxg4 39. hxg4 $11) 38. Nh2) 37... h5 38. Nh2 e4 39. Rb4 {[%cal Of2f3]} Ke5 40. Ke2 Rg8 41. Nf1 (41. Kf1 $142) 41... Rg1 {[#] Hoping for ...f3+. Black is clearly winning.} 42. c4 bxc4 {White must now prevent ...f3+.} 43. Rb6 Bd5 44. Rh6 f3+ 45. Ke1 {[#]} c3 $1 {[%mdl 512] ( -> ...Kd4)} 46. Rxh5+ Kd6 {Weighted Error Value: White=0.58/Black=0.27 (precise) .  Mistake:       	White=6     	---        Inaccurate:     	White=1     	---        OK:         	White=7     	Black=8      Best:        	White=1     	Black=5} ({Avoid the trap} 46... Kf4 $2 47. Rxd5 cxb2 48. Rb5 $18) 0-1

[Event "45th FIDE Olympiad 2024"]
[Site "Budapest"]
[Date "2024.09.18"]
[Round "7.74"]
[White "Bongo Akanga Ndjila, Barthelemy"]
[Black "Meier, Peter"]
[Result "0-1"]
[WhiteElo "1894"]
[BlackElo "2062"]
[PlyCount "104"]
[EventDate "2024.09.05"]
[EventType "team-tourn"]
[EventCountry "HUN"]
[WhiteTeam "Gabon"]
[BlackTeam "Seychelles"]
[BlackTeamCountry "SEY"]
[TimeControl "40/5400+30:1800+30"]

1. d4 Nf6 2. c4 e6 3. Nc3 d5 4. cxd5 exd5 5. Bg5 c6 6. e3 Be7 7. Bd3 O-O 8. Nge2 Nh5 9. Bxe7 Qxe7 10. Qc2 g6 11. h3 Ng7 12. O-O-O b5 13. g4 Na6 14. Qd2 Nb4 15. Bb1 a5 16. Ng3 f5 17. gxf5 Nxf5 18. a3 Na6 19. e4 Nxg3 20. fxg3 b4 21. axb4 axb4 22. Na4 Qc7 23. Qd3 Qa5 24. b3 dxe4 25. Qc4+ Kh8 26. Bxe4 Qg5+ 27. Kb1 Bf5 28. Qxc6 Qe3 29. Bxf5 Qxb3+ 30. Nb2 gxf5 31. Rd3 Qf7 32. d5 Rfc8 33. Qe6 Qg7 34. Qxf5 Nc5 35. Rf3 Rf8 36. Qh5 Rxf3 37. Qxf3 Qg6+ 38. Kc1 Nb3+ 39. Qxb3 Ra1+ 40. Kd2 Rxh1 41. Nd1 Rh2+ 42. Kc1 Qe4 43. d6 Qd4 44. Qa4 Qd2+ 45. Kb1 Qxd6 46. Qa1+ Kg8 47. Qa8+ Kg7 48. Qa7+ Kg6 49. Qa4 Qd3+ 50. Kc1 Qa3+ 51. Qxa3 bxa3 52. Kb1 Rh1 {0-} 0-1

[Event "45th FIDE Olympiad 2024"]
[Site "Budapest"]
[Date "2024.09.18"]
[Round "7.75"]
[White "Livaic, Leon"]
[Black "Bersamina, Paulo"]
[Result "1-0"]
[ECO "D85"]
[WhiteElo "2550"]
[BlackElo "2425"]
[Annotator "TA"]
[PlyCount "119"]
[EventDate "2024.09.05"]
[EventType "team-tourn"]
[EventCountry "HUN"]
[SourceTitle "playchess.com"]
[Source "ChessBase"]
[SourceQuality "1"]
[WhiteTeam "Croatia"]
[BlackTeam "Philippines"]
[WhiteTeamCountry "CRO"]
[BlackTeamCountry "PHI"]
[TimeControl "40/5400+30:1800+30"]

{[%evp 18,119,33,0,39,-33,-26,-34,32,11,22,20,45,63,72,40,37,25,23,30,33,-45,-32,-59,-64,-67,-60,-64,-71,-68,-75,-76,-64,-77,-62,-92,-56,-52,-25,-24,-22,-22,-22,-24,-24,-35,0,0,0,0,0,-13,0,-4,0,-77,-77,-72,-73,-68,-67,-83,-65,-223,-175,-161,-178,-464,-434,-352,-19,-43,-8,-14,-14,-14,0,0,0,0,0,0,0,0,0,0,0,-2,0,-8,0,-8,0,0,0,0,29995,29996,29996,29997,29997,29998,29998,29999]} 1. d4 Nf6 2. c4 g6 3. Nc3 d5 4. cxd5 Nxd5 5. e4 Nxc3 6. bxc3 Bg7 7. Be3 O-O 8. Qd2 c5 9. Rc1 Qa5 10. d5 Nd7 11. c4 (11. Nf3 $14) 11... Qxd2+ $15 12. Kxd2 f5 (12... b6 $15) 13. exf5 $14 Rxf5 14. Bd3 Rf8 15. Nf3 Re8 16. Ng5 {White is more active.} Ne5 17. Bxc5 Nxd3 18. Kxd3 Bf5+ 19. Ke2 (19. Ne4 $14) 19... Bb2 $1 $15 {[%cal Ob7b6]} 20. Rcd1 Rac8 21. Bd4 Ba3 {This pair of bishops is nice.} 22. Bxa7 Rxc4 23. Be3 Ra8 24. Rd4 Rc2+ 25. Rd2 Rxd2+ 26. Bxd2 Bb2 27. Bc1 Rxa2 28. Bxb2 Rxb2+ {[%mdl 4096] Endgame. KRB-KRN} 29. Ke3 Rb3+ 30. Kf4 Rb4+ 31. Ke3 $1 (31. Ke5 $2 h6 32. d6 exd6+ (32... hxg5 $2 33. dxe7 Kf7 34. Kd6 $19) 33. Kxd6 hxg5 $19) 31... b5 32. f3 {Repels Rg4} h6 33. Ne4 Rb2 34. Nd2 Ra2 35. g4 Bc2 36. Kd4 (36. Rc1 $11) 36... Ra3 $17 {Strongly threatening ...Rd3+.} 37. Kc5 Rd3 38. Ne4 Rxf3 39. Re1 Rf4 40. d6 $2 {[#]} exd6+ $1 $19 (40... Bxe4 $2 {loses.} 41. d7 (41. dxe7 $2 Kf7 $19) 41... Rf8 42. Rxe4 $18) 41. Nxd6 b4 {[%cal Ob4b3] Threatens to win with ...b3!} (41... Rxg4 42. Kxb5 Rg2 43. h3) 42. Re7 $2 (42. Re8+ Kg7 43. h3) 42... b3 {[%cal Ob3b2] Hoping for ...b2!} 43. Rb7 Rf2 $2 ({Black should play} 43... Rxg4 $19 {aiming for ...g5.} 44. Kd5 Rg2) 44. h4 $11 g5 45. hxg5 hxg5 46. Kd4 Kf8 47. Ke5 Rf3 48. Ke6 Bg6 49. Ke5 Kg8 50. Ke6 Kh8 51. Ke5 Kg8 52. Ke6 Kf8 53. Ke5 Bc2 54. Ke6 Rf4 55. Nf5 {[%cal Rb7b8]} Kg8 ({Weaker is} 55... Rxg4 56. Rb8#) 56. Kf6 {Kg6 would now be deadly.} Ra4 $2 {[%mdl 8192]} (56... Bxf5 $11 57. gxf5 g4) 57. Nh6+ {White mates.} Kh8 58. Nf7+ Kh7 59. Nxg5+ Kh6 {[#]} 60. Rh7+ $3 {[%mdl 512] White used his chance.   Weighted Error Value: White=0.22 (precise) /Black=0.33.  Loses game:     	---       	Black=1      Missed win:     	---       	Black=1      Mistake:       	White=5     	Black=1      Inaccurate:     	White=3     	Black=3      OK:         	White=21    	Black=16     Best:        	White=3     	Black=3      Strong:       	White=1     	Black=2} 1-0

[Event "45th FIDE Olympiad 2024"]
[Site "Budapest"]
[Date "2024.09.18"]
[Round "7.76"]
[White "Gomez, John Paul"]
[Black "Stevic, Hrvoje"]
[Result "0-1"]
[ECO "D12"]
[WhiteElo "2408"]
[BlackElo "2531"]
[Annotator "RC"]
[PlyCount "56"]
[EventDate "2024.09.05"]
[EventType "team-tourn"]
[EventCountry "HUN"]
[SourceTitle "playchess.com"]
[Source "ChessBase"]
[SourceQuality "1"]
[WhiteTeam "Philippines"]
[BlackTeam "Croatia"]
[WhiteTeamCountry "PHI"]
[BlackTeamCountry "CRO"]
[TimeControl "40/5400+30:1800+30"]

1. d4 d5 2. c4 c6 3. Nf3 Nf6 4. e3 Bf5 5. Nc3 e6 6. Nh4 Bg6 7. Be2 Nbd7 8. O-O Be7 9. g3 dxc4 10. Nxg6 hxg6 11. Bxc4 Qa5 12. e4 b5 13. Bd3 b4 14. Na4 Rd8 15. a3 c5 16. axb4 Qxb4 17. Nc3 cxd4 18. Nb5 Ne5 19. b3 Nxd3 20. Qxd3 Rh5 21. Nc7+ Kf8 22. Bf4 Qb7 23. e5 Nd7 24. Nxe6+ fxe6 25. Qxg6 Rxe5 26. Bxe5 Nxe5 27. Qh5 Nf3+ 28. Kh1 Nd2+ 0-1

[Event "45th FIDE Olympiad 2024"]
[Site "Budapest"]
[Date "2024.09.18"]
[Round "7.77"]
[White "Galaviz Medina, Sion Radamantys"]
[Black "Vocaturo, Daniele"]
[Result "1/2-1/2"]
[ECO "D28"]
[WhiteElo "2488"]
[BlackElo "2600"]
[Annotator "TA"]
[PlyCount "61"]
[EventDate "2024.09.05"]
[EventType "team-tourn"]
[EventCountry "HUN"]
[SourceTitle "playchess.com"]
[Source "ChessBase"]
[SourceQuality "1"]
[WhiteTeam "Mexico"]
[BlackTeam "Italy"]
[WhiteTeamCountry "MEX"]
[BlackTeamCountry "ITA"]
[TimeControl "40/5400+30:1800+30"]

{[%evp 15,61,21,26,-7,68,60,53,57,82,75,83,76,82,34,23,28,34,12,16,12,5,0,0,0,0,0,0,0,0,0,0,0,0,0,0,0,4,0,0,0,0,0,0,0,0,0,0,0]} 1. d4 d5 2. c4 dxc4 3. e3 Nf6 4. Bxc4 e6 5. Nf3 c5 6. O-O Nc6 7. Qe2 a6 8. Rd1 b5 9. d5 bxc4 ({Reject} 9... Nxd5 $6 10. e4 bxc4 11. exd5 $16) (9... exd5 $11 10. Bxd5 Nxd5) 10. dxc6 $14 Qc7 11. Bd2 {White is slightly better.} Qxc6 12. Na3 ({Of course not} 12. Qxc4 Bb7 $11) 12... Be7 13. Nxc4 Bb7 {[%cal Bc8b7,Bb7f3,Bf3e2][%mdl 32]} 14. Na5 {Excellent horsemanship.} (14. Qf1 $16) 14... Qc7 15. Rac1 O-O 16. b4 Rac8 {The position is equal.} 17. bxc5 (17. Nd4 {feels hotter.} Bd5 18. bxc5 Bxc5 19. Nab3) 17... Bxc5 18. Rxc5 Bxf3 19. Rxc7 Bxe2 20. Rxc8 Rxc8 21. Rc1 Rxc1+ 22. Bxc1 $11 {[%mdl 4096] Endgame. KBN-KBN} Nd5 23. Bd2 Bb5 24. e4 Ne7 25. f3 Nc6 26. Nxc6 Bxc6 27. Kf2 e5 28. Ke3 f6 29. Bb4 Kf7 30. a3 Bb5 31. g3 {Weighted Error Value: White=0.08 (flawless) /Black=0.09 (flawless) .  Mistake:       	White=1     	Black=1      OK:         	White=4     	Black=14     Best:        	White=2     	Black=1} 1/2-1/2

[Event "45th FIDE Olympiad 2024"]
[Site "Budapest"]
[Date "2024.09.18"]
[Round "7.77"]
[White "Gontcharov, Serguei"]
[Black "Senglek, Khonsavanh"]
[Result "1-0"]
[WhiteElo "1927"]
[BlackElo "1591"]
[PlyCount "33"]
[EventDate "2024.09.05"]
[EventType "team-tourn"]
[EventCountry "HUN"]
[WhiteTeam "Bermuda"]
[BlackTeam "Laos"]
[WhiteTeamCountry "BER"]
[BlackTeamCountry "LAO"]
[TimeControl "40/5400+30:1800+30"]

1. e4 Nc6 2. d4 e6 3. Nf3 g6 4. Nc3 d5 5. Be2 Nge7 6. O-O Bg7 7. e5 Nf5 8. Bg5 Qd7 9. Qd2 O-O 10. g4 Nfe7 11. Bf6 a6 12. Qg5 Re8 13. Bxg7 Kxg7 14. Qf6+ Kf8 15. Ng5 Nd8 16. Nxh7+ Kg8 17. Qh4 1-0

[Event "45th FIDE Olympiad 2024"]
[Site "Budapest"]
[Date "2024.09.18"]
[Round "7.78"]
[White "Lodici, Lorenzo"]
[Black "Cori Quispe, Kevin Joel"]
[Result "1-0"]
[ECO "B42"]
[WhiteElo "2556"]
[BlackElo "2461"]
[Annotator "TA"]
[PlyCount "77"]
[EventDate "2024.09.05"]
[EventType "team-tourn"]
[EventCountry "HUN"]
[SourceTitle "playchess.com"]
[Source "ChessBase"]
[SourceQuality "1"]
[WhiteTeam "Italy"]
[BlackTeam "Mexico"]
[WhiteTeamCountry "ITA"]
[BlackTeamCountry "MEX"]
[TimeControl "40/5400+30:1800+30"]

{[%evp 14,77,51,47,51,52,41,35,42,43,41,38,41,43,43,25,48,35,41,38,37,27,45,39,29,38,58,84,88,83,65,58,76,88,82,81,92,92,90,85,123,89,91,91,148,135,202,106,120,122,145,141,142,67,50,28,29,33,130,143,131,131,110,-87,918,902]} 1. e4 c5 2. Nf3 e6 3. d4 cxd4 4. Nxd4 a6 5. Bd3 Bc5 6. Nb3 Be7 7. O-O d6 8. Qg4 g6 9. Qe2 Nc6 10. a4 Ne5 {White is slightly better.} 11. Nc3 Nf6 12. Bh6 Nfg4 13. Bd2 O-O 14. a5 Bd7 15. f4 Nxd3 16. cxd3 Nf6 17. Be3 Rc8 18. Bb6 Qe8 19. e5 dxe5 20. fxe5 Nd5 21. Nxd5 exd5 {Black is weak on the dark squares} 22. Qe3 Be6 23. Nd4 {Prevents Qb5.} Qd7 24. Rae1 Rfe8 25. Qh6 Bf8 26. Qf4 {White is much more active.} Bg7 27. Re3 Qe7 28. b4 Qd7 ({Black should play} 28... Rf8) 29. Bc5 $16 Rc7 {[#]} (29... Bf8 $16) 30. Nb3 (30. Bd6 $1 $18) 30... d4 31. Nxd4 (31. Bxd4 $2 Bxb3 32. Bc5 Bd5 $19) 31... Bd5 {[%cal Oc7c5]} 32. Ne2 Qe6 {[%cal Rg7e5]} 33. Qh4 (33. Qg3 $16) 33... Bxe5 $14 {[%cal Oc7c5]} 34. Nf4 (34. Nc3 $5 Rd7 35. Qf2 $16) 34... Qd7 {[%cal Oc7c5]} 35. Nh5 {[%cal Oe3e5] White wants to mate with Rxe5!} gxh5 (35... Rxc5 $2 36. Rxe5 (36. bxc5 Bh8 $18) 36... Rc6 37. Rxe8+ Qxe8 38. Re1 $18 (38. Nf6+ Rxf6 39. Qxf6 Qe3+ 40. Qf2 Qxd3 $18)) (35... Rc6 $14 36. Rfe1 gxh5 37. Rxe5 Rxe5 38. Rxe5 Rg6) 36. Qg5+ $40 {[%mdl 128] White attacks with force.} Bg7 {[#] aiming for ...Rxe3.} 37. Bd4 {[%csl Gd4][%cal Rg5g7] Chess con chili.} (37. Qxh5 $2 Rxe3 38. Bxe3 Qd6 $19 (38... Rc2 $2 39. Rf2 $19)) 37... f6 (37... f5 $2 38. Bxg7 (38. Rxf5 $2 Rc1+ 39. Rf1 Rxf1+ 40. Kxf1 Rxe3 $19) 38... Bf7 39. Rxe8+ (39. Rxf5 Rc1+ 40. Rf1 Rxf1+ 41. Kxf1 Rxe3 $16) 39... Bxe8 40. Be5+ Bg6 41. Bxc7 Qxc7 42. Rxf5 $18) 38. Bxf6 (38. Rxe8+ $16 {is forced if you want to stay better.} Qxe8 39. Qxd5+ Rf7 40. h3 (40. Bxf6 $2 {perishes.} Bxf6 41. Kh1 Qe5 $19) (40. Qxh5 Qd8 $16)) 38... Rxe3 $2 {[%mdl 8192]} (38... Bc6 $17 39. Rg3 Re7 40. Qxh5 (40. Bxe7 Qxe7 41. Qxh5 Qxb4 $19) 40... Qd6 41. Bxe7 Qxe7 (41... Rxe7 42. Qf5 $17)) 39. Bxg7 {Weighted Error Value: White=0.18 (very precise) /Black=0.19 (very precise) .  Loses game:     	---       	Black=1      Mistake:       	White=3     	Black=3      Inaccurate:     	---       	Black=1      OK:         	White=16    	Black=12     Best:        	White=2     	Black=3} 1-0

[Event "45th FIDE Olympiad 2024"]
[Site "Budapest"]
[Date "2024.09.18"]
[Round "7.79"]
[White "Ibarra Chami, Luis Fernando"]
[Black "Moroni, Luca Jr"]
[Result "1/2-1/2"]
[ECO "B33"]
[WhiteElo "2427"]
[BlackElo "2558"]
[Annotator "TA"]
[PlyCount "93"]
[EventDate "2024.09.05"]
[EventType "team-tourn"]
[EventCountry "HUN"]
[SourceTitle "playchess.com"]
[Source "ChessBase"]
[SourceQuality "1"]
[WhiteTeam "Mexico"]
[BlackTeam "Italy"]
[WhiteTeamCountry "MEX"]
[BlackTeamCountry "ITA"]
[TimeControl "40/5400+30:1800+30"]

{[%evp 10,93,78,40,70,32,45,53,61,47,41,49,68,40,45,11,22,0,0,0,0,0,0,0,0,0,23,22,23,14,34,0,8,0,0,-22,0,0,0,-15,0,0,21,17,41,47,39,23,27,-8,-8,-12,-8,-8,-8,-8,-15,-65,-26,-64,22,22,31,16,29,18,66,48,100,81,108,81,105,97,110,106,295,171,127,0,0,0,180,0,0,0]} 1. e4 c5 2. Nf3 Nc6 3. d4 cxd4 4. Nxd4 Nf6 5. Nc3 h5 6. h3 {B33: Sicilian: Pelikan and Sveshnikov Variations.} g6 7. Nxc6 bxc6 8. e5 Nh7 9. Bd3 $146 ({Predecessor:} 9. Bc4 Bg7 10. f4 d6 11. O-O O-O 12. Be3 a5 13. Rf2 Rb8 14. Bb3 Qc7 15. Qf1 {0-1 Abdumalik,Z (2496)-Nihal,S (2648) Fagernes op 2022 (6)}) 9... Bg7 10. Qe2 O-O 11. O-O d6 12. f4 dxe5 13. f5 gxf5 14. Bxf5 Bxf5 15. Rxf5 e6 16. Rxh5 f5 17. Bh6 Qf6 18. Bxg7 Qxg7 19. Qc4 Rf6 20. Qxc6 Rb8 21. Rd1 Nf8 22. Na4 Rg6 23. Kh1 e4 24. Qd6 (24. g4 $5) 24... Rb7 25. Rg1 $1 Rc7 (25... Rd7 $5 26. Qf4 $8 Qd4 $11) 26. Nc5 Rf7 27. c3 Qf6 28. Qf4 Rfg7 29. Qh4 Qxh4 30. Rxh4 Nd7 31. Nxd7 Rxd7 32. Rf4 $1 Kf7 33. Rf2 (33. Rgf1 $11) 33... Kf6 34. c4 Ke5 ({Black should play} 34... Rd4 $15 35. Rc2 Ke7) 35. c5 $11 Rg3 36. c6 Rc7 37. Rc2 Rd3 (37... Kd6 $11) 38. b4 a6 (38... Rd4 $14) 39. a4 Rb3 40. Rc5+ Kf4 41. b5 $1 axb5 42. axb5 Kg3 $2 (42... e3 $16 {was worth a try.}) 43. Rf1 (43. Rgc1 $142 Kf4 44. Kg1) 43... Rb2 $18 {[#]} 44. Rc3+ (44. Rfc1 $1 $16) 44... Kh4 $18 45. Rc5 Kg3 $1 {[#]} 46. Rc3+ $2 ({Better is} 46. Rfc1 $1 $18) 46... Kh4 $11 47. Rc5 1/2-1/2

[Event "45th FIDE Olympiad 2024"]
[Site "Budapest"]
[Date "2024.09.18"]
[Round "7.80"]
[White "Sonis, Francesco"]
[Black "Palma Villanueva, Miguel Tadeo"]
[Result "1-0"]
[ECO "D73"]
[WhiteElo "2554"]
[BlackElo "2266"]
[Annotator "RC"]
[PlyCount "57"]
[EventDate "2024.09.05"]
[EventType "team-tourn"]
[EventCountry "HUN"]
[SourceTitle "playchess.com"]
[Source "ChessBase"]
[SourceQuality "1"]
[WhiteTeam "Italy"]
[BlackTeam "Mexico"]
[WhiteTeamCountry "ITA"]
[BlackTeamCountry "MEX"]
[TimeControl "40/5400+30:1800+30"]

1. d4 g6 2. c4 Bg7 3. Nf3 Nf6 4. g3 c6 5. Bg2 d5 6. b3 O-O 7. Bb2 dxc4 8. bxc4 Ne4 9. O-O Qb6 10. Qc1 c5 11. e3 cxd4 12. Bxd4 Bxd4 13. exd4 Nc6 14. Re1 f5 15. c5 Qd8 16. Qc4+ e6 17. Nc3 Nxc3 18. Qxc3 Ne7 19. Ne5 Nd5 20. Qb3 Kh8 21. f4 Ne7 22. Rad1 Rb8 23. Qa3 a6 24. Nc4 Bd7 25. d5 exd5 26. Bxd5 Nxd5 27. Rxd5 Rf7 28. Ne5 Qe8 29. Qc3 1-0